lending/lending_fUSD_20240504
["ID","MTS","AMOUNT","RATE_DAILY","PERIOD"]
[325419965,1714860631889,-516.158348,0.00011446,2]
[325419966,1714860631901,-580.86539022,0.00011446,2]
[325419967,1714860631912,-3860.40152884,0.00011446,2]
[325419969,1714860631923,-12049.8909042,0.00011446,2]
[325419970,1714860631952,-2444.26708576,0.00011446,2]
[325419971,1714860631964,-4909.8383545,0.00011446,2]
[325419972,1714860631980,-10934.86080387,0.00011446,2]
[325419973,1714860631989,-11516.84500148,0.00011447,2]
[325419974,1714860632001,-593.41505923,0.00011447,2]
[325419975,1714860632015,-766.99729686,0.00011447,2]
[325419976,1714860632025,-150.0,0.00011547,2]
[325419977,1714860632035,-150.0,0.00011547,2]
[325419978,1714860632044,-195.01344814,0.00011556,2]
[325419979,1714860632076,-251.61999996,0.00011556,2]
[325419982,1714860632180,-2332.32978955,0.00011556,2]
[325419985,1714860632192,-83.51536235,0.00011556,2]
[325419988,1714860632202,-629.55830031,0.00011556,2]
[325419993,1714860632214,-893.59727248,0.00011556,2]
[325420009,1714860632339,-2309.71442721,0.00011556,2]
[325420010,1714860632349,-150.99,0.00011556,2]
[325420011,1714860632358,-1539.29557279,0.00011588,2]
[325420012,1714860632370,-317.946002,0.00011588,2]
[325420019,1714860637756,-3055.51863775,0.00011441,2]
[325420021,1714860637765,-2640.22516115,0.00011588,2]
[325420022,1714860637823,-838.75528515,0.00011588,2]
[325420023,1714860637835,-18543.77797891,0.00011588,2]
[325420024,1714860637845,-1000.0,0.00011616,2]
[325420025,1714860637854,-250.0,0.00011673,2]
[325420026,1714860637863,-318.19,0.00011673,2]
[325420027,1714860637872,-250.0,0.00011781,2]
[325420028,1714860637881,-150.99,0.00011781,2]
[325420029,1714860637890,-358.44,0.00011781,2]
[325420030,1714860637899,-190.3,0.00011843,2]
[325420031,1714860637908,-190.3,0.00011902,2]
[325420032,1714860637917,-312.71181864,0.00012251,2]
[325420033,1714860637926,-1293.92148157,0.00012347,2]
[325420034,1714860637936,-516.6689,0.00012481,2]
[325420035,1714860637945,-7291.55,0.00012496,2]
[325420036,1714860637955,-8959.9236,0.00012496,2]
[325420037,1714860637964,-210.0,0.00012701,2]
[325420038,1714860637973,-210.0,0.00012701,2]
[325420039,1714860637982,-1852.42,0.00012708,2]
[325420040,1714860637992,-499.99,0.00012743,2]
[325420041,1714860638001,-151.12,0.00012786,2]
[325420042,1714860638011,-2621.899,0.00012799,2]
[325420043,1714860638020,-768.04658716,0.00012799,2]
[325420044,1714860638029,-150.0,0.00012809,2]
[325420045,1714860638038,-221.05,0.00012809,2]
[325420046,1714860638048,-151.12,0.00012823,2]
[325420047,1714860638056,-1601.397,0.00012838,2]
[325420048,1714860638066,-768.04658714,0.0001285,2]
[325420049,1714860638075,-151.12,0.00012859,2]
[325420050,1714860638084,-151.12,0.00012896,2]
[325420051,1714860638093,-19457.26488767,0.00012896,2]
[325420052,1714860638102,-1245.66076353,0.00012896,2]
[325420053,1714860638111,-190.1670451,0.00012896,2]
[325420054,1714860638121,-2638.96505361,0.00012896,2]
[325420055,1714860638129,-155.0,0.00012896,2]
[325420056,1714860638139,-780.9689381,0.00012896,2]
[325420057,1714860638148,-1076.98006265,0.00012897,3]
[325420058,1714860638157,-1076.98006265,0.00012897,3]
[325420059,1714860638166,-673043.98453489,0.00012898,2]
[325420060,1714860638190,-3319.01570001,0.00012898,2]
[325420061,1714860638220,-10590.36497327,0.00012898,2]
[325420062,1714860638230,-198804.7652749,0.00012899,2]
[325420063,1714860638241,-46195.2347251,0.00012899,2]
[325420064,1714860638251,-1000.0,0.00012899,2]
[325420065,1714860638260,-388.6296,0.000129,2]
[325420066,1714860638270,-558.06586596,0.000129,2]
[325420067,1714860638281,-390.14424074,0.000129,2]
[325420068,1714860638291,-7936.68970905,0.000129,2]
[325420071,1714860639876,-164.02,0.00011779,2]
[325420072,1714860639886,-164.02,0.00011798,2]
[325420073,1714860639896,-164.02,0.00011818,2]
[325420074,1714860639905,-164.02,0.00011838,2]
[325420075,1714860639915,-626.6317794,0.000129,2]
[325420076,1714860639927,-278.13525569,0.000129,2]
[325420077,1714860639941,-474.95316478,0.000129,2]
[325420078,1714860639956,-116.370945,0.000129,2]
[325420079,1714860639968,-216.84557176,0.000129,2]
[325420080,1714860639977,-363.90726647,0.000129,2]
[325420081,1714860639987,-391.20620597,0.000129,2]
[325420082,1714860639999,-376.84038117,0.000129,2]
[325420083,1714860640008,-196.22,0.00012943,2]
[325420084,1714860640018,-1405.84483229,0.00012997,2]
[325420085,1714860640034,-526.94918956,0.00012997,2]
[325420086,1714860640045,-375.93257824,0.00012997,2]
[325420087,1714860640055,-4730.70615897,0.00012997,2]
[325420088,1714860640329,-179.49292044,0.00012997,2]
[325420089,1714860640343,-2217.06939239,0.00012997,2]
[325420090,1714860640353,-500.0,0.00012999,2]
[325420091,1714860640362,-1076.98006264,0.00012999,3]
[325420092,1714860640372,-1076.98006265,0.00012999,3]
[325420093,1714860640383,-20105.98617257,0.00013,2]
[325420094,1714860640397,-218649.01519511,0.00013,2]
[325420095,1714860640411,-2420.15064,0.00013,2]
[325420096,1714860640423,-1492.13306541,0.00013,2]
[325420097,1714860640448,-1305.5717064,0.00013,2]
[325420098,1714860640462,-435.67082283,0.00013,2]
[325420099,1714860640475,-276.0,0.00013,2]
[325420100,1714860640486,-11505.8443114,0.00013,2]
[325420101,1714860640497,-8381.12854732,0.00013,2]
[325420102,1714860640509,-28893.68607968,0.00013,2]
[325420103,1714860640520,-3470.94892398,0.00013,2]
[325420104,1714860640531,-2758.11352494,0.00013,2]
[325420105,1714860640543,-2032.2,0.00013,2]
[325420106,1714860640569,-1048.582763,0.00013,2]
[325420107,1714860640580,-503.48872017,0.00013,2]
[325420108,1714860640599,-2532875.23084766,0.00013,2]
[325420109,1714860640608,-188.60134713,0.00013,2]
[325420110,1714860640618,-695140.646741,0.00013,2]
[325420111,1714860640628,-1000.0,0.00013069,2]
[325420112,1714860640638,-170.57,0.00013135,2]
[325420113,1714860640647,-151.12,0.00013224,2]
[325420114,1714860640657,-151.12,0.00013261,2]
[325420115,1714860640666,-1757.9,0.00013425,2]
[325420116,1714860640675,-169.26,0.00013425,2]
[325420117,1714860640685,-1381.46,0.00013699,2]
[325420118,1714860640694,-200.0,0.00013699,2]
[325420119,1714860640704,-500.0,0.00013699,2]
[325420120,1714860640713,-1000.0,0.00014521,2]
[325420121,1714860640723,-158.55,0.00014877,2]
[325420122,1714860640732,-158.55,0.00014882,2]
[325420123,1714860640742,-158.55,0.00014886,2]
[325420124,1714860640751,-158.55,0.00014891,2]
[325420125,1714860640761,-158.55,0.00014896,2]
[325420126,1714860640770,-158.55,0.000149,2]
[325420127,1714860640785,-158.55,0.00014905,2]
[325420128,1714860640795,-158.55,0.0001491,2]
[325420129,1714860640805,-158.55,0.00014914,2]
[325420130,1714860640814,-158.55,0.00014919,2]
[325420131,1714860640823,-158.55,0.00014924,2]
[325420132,1714860640832,-158.55,0.00014928,2]
[325420133,1714860640841,-158.55,0.00014933,2]
[325420134,1714860640850,-158.55,0.00014938,2]
[325420135,1714860640860,-158.55,0.00014942,2]
[325420136,1714860640869,-158.55,0.00014947,2]
[325420137,1714860640878,-158.55,0.00014951,2]
[325420138,1714860640887,-4212.970604,0.00015,2]
[325420139,1714860640897,-300.0,0.00015068,2]
[325420140,1714860640906,-15608.66247394,0.000154,2]
[325420141,1714860640916,-558.0658659,0.00015536,2]
[325420142,1714860640926,-9043.30435825,0.00015652,2]
[325420143,1714860640935,-5000.0,0.00015652,2]
[325420144,1714860640944,-167.0,0.00015831,2]
[325420145,1714860640954,-1000.0,0.00015973,2]
[325420146,1714860640964,-1748.69131799,0.00016,2]
[325420147,1714860640974,-816.54,0.00016116,2]
[325420148,1714860640983,-7111.98,0.00016164,2]
[325420149,1714860640993,-167.0,0.00016354,2]
[325420150,1714860641002,-300.0,0.00016438,2]
[325420151,1714860641012,-300.0,0.00016438,2]
[325420152,1714860641021,-300.0,0.00016438,2]
[325420153,1714860641030,-300.0,0.00016438,2]
[325420154,1714860641039,-300.0,0.00016438,2]
[325420155,1714860641048,-300.0,0.00016438,2]
[325420156,1714860641058,-300.0,0.00016438,2]
[325420157,1714860641067,-300.0,0.00016438,2]
[325420158,1714860641076,-300.0,0.00016438,2]
[325420159,1714860641085,-300.0,0.00016438,2]
[325420160,1714860641095,-300.0,0.00016438,2]
[325420161,1714860641104,-300.0,0.00016438,2]
[325420162,1714860641114,-300.0,0.00016438,2]
[325420163,1714860641123,-310.51535247,0.00016438,2]
[325420164,1714860641135,-300.0,0.00016438,2]
[325420165,1714860641144,-1037.89,0.00016438,2]
[325420166,1714860641153,-1224.97705227,0.000165,2]
[325420167,1714860641164,-182.31,0.00016712,2]
[325420168,1714860641173,-720.0,0.000168,2]
[325420169,1714860641183,-167.0,0.00016876,2]
[325420170,1714860641193,-150.6295176,0.000169,2]
[325420171,1714860641203,-19011.72070833,0.00017,2]
[325420172,1714860641213,-22786.54466119,0.00017258,2]
[325420173,1714860641223,-3074.11489296,0.00017259,2]
[325420174,1714860641232,-155.0,0.00017259,2]
[325420175,1714860641241,-167.0,0.00017399,2]
[325420176,1714860641251,-1000.0,0.00017425,2]
[325420177,1714860641261,-10000.0,0.0001778,2]
[325420178,1714860641270,-256559.57814158,0.0001788,2]
[325420179,1714860641279,-256559.57814156,0.0001788,2]
[325420180,1714860641290,-21718.60018585,0.0001788,2]
[325420181,1714860641302,-21718.60018583,0.0001788,2]
[325420182,1714860641313,-167.0,0.00017921,2]
[325420183,1714860641322,-1552.7768217,0.00018,2]
[325420184,1714860641332,-1107.10604036,0.00018,2]
[325420185,1714860641343,-1656.14142698,0.000181,2]
[325420186,1714860641352,-558.0658659,0.00018173,2]
[325420187,1714860641362,-167.0,0.00018444,2]
[325420188,1714860641371,-21718.60018583,0.00019126,2]
[325420189,1714860641382,-200.0,0.00019178,2]
[325420190,1714860641391,-200.0,0.00019178,2]
[325420191,1714860641400,-200.0,0.00019178,2]
[325420192,1714860641410,-200.0,0.00019178,2]
[325420193,1714860641419,-200.0,0.00019178,2]
[325420194,1714860641429,-200.0,0.00019178,2]
[325420195,1714860641438,-170.0,0.00019178,2]
[325420196,1714860641448,-4868.47,0.00019178,2]
[325420197,1714860641457,-3127.02,0.00019178,2]
[325420198,1714860641469,-1381.46,0.00019178,2]
[325420199,1714860641479,-256559.57814156,0.00019187,2]
[325420200,1714860641488,-7436.08654261,0.000192,2]
[325420201,1714860641498,-604.21,0.000192,2]
[325420202,1714860641509,-367.61,0.000192,2]
[325420203,1714860641519,-1310.8,0.000192,2]
[325420204,1714860641529,-221.05,0.00019213,2]
[325420205,1714860641539,-196.22,0.00019415,2]
[325420206,1714860641549,-170.57,0.00019702,2]
[325420207,1714860641559,-196.22470885,0.000199,2]
[325420208,1714860641569,-196.22470865,0.000199,2]
[325420209,1714860641578,-196.22470865,0.000199,2]
[325420210,1714860641588,-196.22470865,0.000199,2]
[325420211,1714860641597,-196.22470865,0.000199,2]
[325420212,1714860641606,-196.22470865,0.000199,2]
[325420213,1714860641616,-196.22470865,0.000199,2]
[325420214,1714860641625,-196.22470865,0.000199,2]
[325420215,1714860641635,-196.22470865,0.000199,2]
[325420216,1714860641644,-196.22470865,0.000199,2]
[325420217,1714860641654,-196.22470865,0.000199,2]
[325420218,1714860641663,-196.22470865,0.000199,2]
[325420219,1714860641673,-196.22470865,0.000199,2]
[325420220,1714860641683,-196.22470865,0.000199,2]
[325420221,1714860641692,-196.22470865,0.000199,2]
[325420222,1714860641702,-196.22470865,0.000199,2]
[325420223,1714860641711,-196.22470865,0.000199,2]
[325420224,1714860641728,-196.22470865,0.000199,2]
[325420225,1714860641737,-196.22470865,0.000199,2]
[325420226,1714860641746,-196.22470865,0.000199,2]
[325420227,1714860641755,-196.22470865,0.000199,2]
[325420228,1714860641765,-196.22470865,0.00019901,2]
[325420229,1714860641775,-182.63720712,0.0002,4]
[325420230,1714860641784,-6227.01127323,0.0002,2]
[325420231,1714860641794,-277.60850275,0.0002,2]
[325420232,1714860641803,-5175.72990395,0.0002,2]
[325420233,1714860641813,-626.33513578,0.0002,2]
[325420234,1714860641822,-1258.92106761,0.0002,2]
[325420235,1714860641831,-1047.31478879,0.0002,2]
[325420236,1714860641841,-180.5179202,0.0002,2]
[325420237,1714860641851,-155.10548559,0.0002,2]
[325420238,1714860641860,-1768.39934975,0.0002,2]
[325420239,1714860641869,-275.5,0.0002,2]
[325420240,1714860641878,-10000.0,0.00020117,2]
[325420241,1714860641888,-196.22470865,0.0002024,2]
[325420242,1714860641897,-1000.0,0.0002054,2]
[325420243,1714860641907,-170.32,0.00020548,2]
[325420244,1714860641916,-19885.07,0.00020548,2]
[325420245,1714860641926,-196.22470865,0.00020578,2]
[325420246,1714860641936,-558.0658659,0.00020809,2]
[325420247,1714860641945,-155.0,0.000209,2]
[325420248,1714860641954,-196.22470865,0.00020916,2]
[325420249,1714860641968,-715.94935382,0.00021,2]
[325420250,1714860641978,-2346.473582,0.00021,2]
[325420251,1714860641987,-275.5,0.00021,2]
[325420252,1714860641996,-1396.0,0.00021051,2]
[325420253,1714860642006,-1498.848,0.00021051,2]
[325420254,1714860642015,-971.0,0.00021051,2]
[325420255,1714860642024,-462.0,0.00021051,2]
[325420256,1714860642033,-1229.0,0.00021051,2]
[325420257,1714860642042,-542.0,0.00021051,2]
[325420258,1714860642052,-1258.0,0.00021051,2]
[325420259,1714860642061,-1786.0,0.00021051,2]
[325420260,1714860642070,-5900.0,0.00021051,2]
[325420261,1714860642079,-5738.0,0.00021051,2]
[325420262,1714860642089,-831.957,0.00021051,2]
[325420263,1714860642098,-37750.0,0.00021051,2]
[325420264,1714860642107,-1057.0,0.00021051,2]
[325420265,1714860642116,-196.22470865,0.00021254,2]
[325420266,1714860642126,-2988.38,0.0002137,2]
[325420267,1714860642136,-604.21,0.000215,2]
[325420268,1714860642146,-367.61,0.000215,2]
[325420269,1714860642156,-196.22470865,0.00021593,2]
[325420270,1714860642165,-235.29,0.00021644,2]
[325420271,1714860642174,-6757.61638509,0.000219,2]
[325420272,1714860642183,-1310.8,0.000219,2]
[325420273,1714860642192,-250.0,0.00021918,2]
[325420274,1714860642201,-500.95,0.00021918,2]
[325420275,1714860642211,-2000.0,0.00021918,2]
[325420276,1714860642222,-196.22470865,0.00021931,2]
[325420277,1714860642231,-275.5,0.00022,2]
[325420278,1714860642239,-196.22470865,0.00022269,2]
[325420279,1714860642249,-21718.60018583,0.00022289,2]
[325420280,1714860642258,-256559.57814156,0.0002238,2]
[325420281,1714860642267,-196.22470865,0.00022607,2]
[325420282,1714860642276,-196.22470865,0.00022945,2]
[325420283,1714860642286,-17693.23462494,0.00023,2]
[325420284,1714860642296,-239.63024137,0.00023,2]
[325420285,1714860642310,-404.561317,0.00023,2]
[325420286,1714860642320,-196.22470865,0.00023284,2]
[325420287,1714860642331,-2000.61208485,0.000234,2]
[325420288,1714860642342,-558.0658659,0.00023445,2]
[325420289,1714860642352,-196.22470865,0.00023622,2]
[325420290,1714860642362,-196.22470865,0.0002396,2]
[325420291,1714860642371,-432.11468821,0.00024,2]
[325420292,1714860642382,-542.0,0.00024051,2]
[325420293,1714860642391,-1056.0,0.00024051,2]
[325420294,1714860642401,-604.21,0.000241,2]
[325420295,1714860642412,-367.61,0.000241,2]
[325420296,1714860642422,-180.0,0.0002423,2]
[325420297,1714860642432,-196.22470865,0.00024298,2]
[325420298,1714860642441,-150.62951756,0.00024608,2]
[325420299,1714860642450,-196.22470865,0.00024636,2]
[325420300,1714860642459,-667.24586869,0.00024657,2]
[325420301,1714860642471,-1757.9,0.00024658,2]
[325420302,1714860642480,-169.26,0.00024658,2]
[325420303,1714860642489,-500.95,0.00024658,2]
[325420304,1714860642498,-1310.8,0.000247,2]
[325420305,1714860642509,-196.22470865,0.00024975,2]
[325420306,1714860642518,-5000.0,0.00025,2]
[325420307,1714860642528,-2560.94517472,0.00025,2]
[325420308,1714860642537,-456.66329758,0.00025,7]
[325420309,1714860642547,-471.39951687,0.00025,2]
[325420310,1714860642556,-155.0,0.00025,2]
[325420311,1714860642566,-928.11538721,0.00025,2]
[325420312,1714860642576,-196.22470865,0.00025313,2]
[325420313,1714860642585,-21718.60018583,0.00025452,2]
[325420314,1714860642595,-256559.57814156,0.00025574,2]
[325420315,1714860642604,-196.22470865,0.00025651,2]
[325420316,1714860642614,-196.22470865,0.00025989,2]
[325420317,1714860642623,-558.0658659,0.00026082,2]
[325420318,1714860642633,-196.22470865,0.00026328,2]
[325420319,1714860642643,-196.22470865,0.00026666,2]
[325420320,1714860642652,-390.14424073,0.00026948,2]
[325420321,1714860642662,-9432.78085392,0.00026948,2]
[325420322,1714860642671,-363.90726646,0.00026948,2]
[325420324,1714860642680,-1737.38851403,0.00027,2]
[325420326,1714860642690,-2000.0,0.00027,2]
[325420330,1714860642699,-196.22470865,0.00027004,2]
[325420334,1714860642709,-2000.0,0.0002701,2]
[325420337,1714860642720,-2000.0,0.0002702,2]
[325420339,1714860642730,-2000.0,0.0002703,2]
[325420341,1714860642739,-2000.0,0.0002704,2]
[325420344,1714860642749,-3504.916221,0.0002705,2]
[325420345,1714860642758,-542.0,0.00027051,2]
[325420347,1714860642768,-2583.61,0.00027068,15]
[325420349,1714860642777,-3432.72,0.00027123,2]
[325420352,1714860642786,-604.21,0.000272,2]
[325420355,1714860642796,-367.61,0.000272,2]
[325420357,1714860642805,-196.22470865,0.00027342,2]
[325420358,1714860642815,-200.0,0.00027397,2]
[325420359,1714860642824,-151.85,0.00027397,2]
[325420360,1714860642834,-15791.81,0.00027397,2]
[325420361,1714860642843,-79914.67,0.00027397,2]
[325420362,1714860642852,-500.95,0.00027397,2]
[325420363,1714860642862,-196.22470865,0.0002768,2]
[325420364,1714860642871,-235.29,0.00027714,2]
[325420365,1714860642881,-1310.8,0.000279,2]
[325420366,1714860642890,-155.24319573,0.00028,2]
[325420367,1714860642900,-24622.1075243,0.00028,2]
[325420368,1714860642909,-492.44215048,0.00028,2]
[325420369,1714860642918,-2500.0,0.00028,3]
[325420370,1714860642928,-196.22470865,0.00028019,2]
[325420371,1714860642937,-1222.59230457,0.00028297,120]
[325420372,1714860642946,-196.22470865,0.00028357,2]
[325420373,1714860642956,-491.32101571,0.000285,120]
[325420374,1714860642965,-1500.0,0.000285,3]
[325420375,1714860642975,-196.22470865,0.00028695,2]
[325420376,1714860642986,-558.0658659,0.00028718,2]
[325420377,1714860642995,-256559.57814156,0.00028768,2]
[325420378,1714860643005,-500.0,0.00028998,2]
[325420379,1714860643015,-500.0,0.00028998,2]
[325420380,1714860643025,-500.0,0.00028998,2]
[325420381,1714860643035,-500.0,0.00028998,2]
[325420382,1714860643045,-269.89306661,0.00028998,2]
[325420383,1714860643054,-500.0,0.00028998,2]
[325420384,1714860643063,-500.0,0.00028998,2]
[325420385,1714860643072,-500.0,0.00028998,2]
[325420386,1714860643082,-500.0,0.00028998,2]
[325420387,1714860643092,-500.0,0.00028998,2]
[325420388,1714860643101,-500.0,0.00028998,2]
[325420389,1714860643110,-500.0,0.00028998,2]
[325420390,1714860643120,-500.0,0.00028998,2]
[325420391,1714860643129,-500.0,0.00028998,2]
[325420392,1714860643138,-500.0,0.00028998,2]
[325420393,1714860643147,-500.0,0.00028998,2]
[325420394,1714860643157,-500.0,0.00028998,2]
[325420395,1714860643166,-500.0,0.00028998,2]
[325420396,1714860643175,-500.0,0.00028998,2]
[325420397,1714860643184,-343.18744001,0.00028998,2]
[325420398,1714860643193,-500.0,0.00028998,2]
[325420399,1714860643202,-500.0,0.00028998,2]
[325420400,1714860643212,-500.0,0.00028998,2]
[325420401,1714860643223,-500.0,0.00028998,2]
[325420402,1714860643232,-500.0,0.00028998,2]
[325420403,1714860643241,-500.0,0.00028998,2]
[325420404,1714860643250,-641.83671423,0.00028998,2]
[325420405,1714860643259,-500.0,0.00028998,2]
[325420406,1714860643269,-500.0,0.00028998,2]
[325420407,1714860643279,-500.0,0.00028998,2]
[325420408,1714860643288,-500.0,0.00028998,2]
[325420409,1714860643299,-500.0,0.00028998,2]
[325420410,1714860643311,-614.85340538,0.00028998,2]
[325420411,1714860643320,-500.0,0.00028998,2]
[325420412,1714860643329,-500.0,0.00028998,2]
[325420413,1714860643338,-500.0,0.00028998,2]
[325420414,1714860643349,-500.0,0.00028998,2]
[325420415,1714860643358,-500.0,0.00028998,2]
[325420416,1714860643367,-500.0,0.00028998,2]
[325420417,1714860643378,-500.0,0.00028998,2]
[325420418,1714860643389,-500.0,0.00028998,2]
[325420419,1714860643398,-500.0,0.00028998,2]
[325420421,1714860643407,-500.0,0.00028998,2]
[325420424,1714860643416,-500.0,0.00028998,2]
[325420426,1714860643426,-500.0,0.00028998,2]
[325420429,1714860643435,-500.0,0.00028998,2]
[325420433,1714860643444,-500.0,0.00028998,2]
[325420435,1714860643454,-500.0,0.00028998,2]
[325420438,1714860643463,-500.0,0.00028998,2]
[325420440,1714860643473,-500.0,0.00028998,2]
[325420442,1714860643482,-500.0,0.00028998,2]
[325420444,1714860643491,-500.0,0.00028998,2]
[325420446,1714860643501,-500.0,0.00028998,2]
[325420448,1714860643510,-500.0,0.00028998,2]
[325420450,1714860643520,-500.0,0.00028998,2]
[325420452,1714860643529,-500.0,0.00028998,2]
[325420454,1714860643539,-500.0,0.00028998,2]
[325420455,1714860643548,-500.0,0.00028998,2]
[325420457,1714860643558,-500.0,0.00028998,2]
[325420458,1714860643567,-500.0,0.00028998,2]
[325420459,1714860643576,-500.0,0.00028998,2]
[325420460,1714860643586,-500.0,0.00028998,2]
[325420461,1714860643595,-500.0,0.00028998,2]
[325420462,1714860643605,-500.0,0.00028998,2]
[325420463,1714860643614,-500.0,0.00028998,2]
[325420464,1714860643623,-500.0,0.00028998,2]
[325420465,1714860643632,-424.03296552,0.00028998,2]
[325420466,1714860643641,-500.0,0.00028998,2]
[325420467,1714860643650,-500.0,0.00028998,2]
[325420468,1714860643659,-500.0,0.00028998,2]
[325420469,1714860643669,-500.0,0.00028998,2]
[325420470,1714860643678,-500.0,0.00028998,2]
[325420471,1714860643688,-500.0,0.00028998,2]
[325420472,1714860643698,-500.0,0.00028998,2]
[325420473,1714860643708,-500.0,0.00028998,2]
[325420474,1714860643718,-500.0,0.00028998,2]
[325420475,1714860643727,-500.0,0.00028998,2]
[325420476,1714860643736,-500.0,0.00028999,2]
[325420477,1714860643745,-500.0,0.00028999,2]
[325420478,1714860643754,-500.0,0.00028999,2]
[325420479,1714860643764,-500.0,0.00028999,2]
[325420480,1714860643774,-500.0,0.00028999,2]
[325420481,1714860643784,-501.02845076,0.00028999,2]
[325420482,1714860643794,-518.09444191,0.00028999,2]
[325420483,1714860643804,-500.0,0.00028999,2]
[325420484,1714860643813,-500.0,0.00028999,2]
[325420485,1714860643823,-500.0,0.00028999,2]
[325420486,1714860643833,-500.0,0.00028999,2]
[325420487,1714860643843,-500.0,0.00028999,2]
[325420488,1714860643852,-500.0,0.00028999,2]
[325420489,1714860643862,-500.0,0.00028999,2]
[325420490,1714860643871,-500.0,0.00028999,2]
[325420491,1714860643881,-500.0,0.00028999,2]
[325420492,1714860643890,-500.0,0.00028999,2]
[325420493,1714860643900,-500.0,0.00028999,2]
[325420494,1714860643909,-234.08202064,0.00028999,2]
[325420495,1714860643918,-470.54450451,0.00028999,2]
[325420496,1714860643927,-500.0,0.00028999,2]
[325420497,1714860643936,-500.0,0.00028999,2]
[325420498,1714860643945,-500.0,0.00028999,2]
[325420499,1714860643955,-500.0,0.00028999,2]
[325420500,1714860643964,-500.0,0.00028999,2]
[325420501,1714860643975,-500.0,0.00028999,2]
[325420502,1714860643986,-500.0,0.00028999,2]
[325420503,1714860643995,-500.0,0.00028999,2]
[325420504,1714860644005,-500.0,0.00028999,2]
[325420505,1714860644015,-500.0,0.00028999,2]
[325420506,1714860644024,-500.0,0.00028999,2]
[325420507,1714860644034,-500.0,0.00028999,2]
[325420508,1714860644056,-500.0,0.00028999,2]
[325420509,1714860644067,-500.0,0.00028999,2]
[325420510,1714860644077,-500.0,0.00028999,2]
[325420511,1714860644087,-500.0,0.00028999,2]
[325420512,1714860644097,-500.0,0.00028999,2]
[325420513,1714860644107,-500.0,0.00028999,2]
[325420514,1714860644116,-563.90778407,0.00029,2]
[325420515,1714860644126,-500000.0,0.00029,2]
[325420516,1714860644136,-30000.0,0.00029,2]
[325420517,1714860644145,-1500.0,0.00029,3]
[325420518,1714860644154,-196.22470865,0.00029033,2]
[325420519,1714860644164,-196.22470865,0.00029371,2]
[325420520,1714860644173,-1500.0,0.000295,3]
[325420521,1714860644183,-196.22470865,0.0002971,2]
[325420522,1714860644192,-8521.21,0.00029815,2]
[325420523,1714860644202,-9330.96488798,0.00029914,2]
[325420524,1714860644212,-9330.96488797,0.00029914,2]
[325420525,1714860644224,-9330.96488797,0.00029914,2]
[325420526,1714860644541,-888.0,0.00029999,3]
[325420527,1714860644557,-19349.78395576,0.0003,4]
[325420528,1714860644568,-735.48846237,0.0003,4]
[325420529,1714860644579,-5677.45044794,0.0003,2]
[325420530,1714860644589,-161.47873451,0.0003,2]
[325420531,1714860644599,-14000.0,0.0003,4]
[325420532,1714860644609,-1500.0,0.0003,3]
[325420533,1714860644619,-196.22470865,0.00030048,2]
[325420534,1714860644630,-151.85,0.00030137,2]
[325420535,1714860644640,-500.95,0.00030137,2]
[325420536,1714860644650,-196.22470865,0.00030386,2]
[325420537,1714860644660,-1500.0,0.000305,3]
[325420538,1714860644671,-155.17281587,0.00030627,2]
[325420539,1714860644681,-1515.18495571,0.00030627,2]
[325420540,1714860644691,-1240.58931592,0.00030627,4]
[325420541,1714860644701,-947.6869829,0.00030627,4]